[Event "1st Turkish League 2017"]
[Site "Konya"]
[Date "2017.07.20"]
[Round "6"]
[White "Kitir, Ahmet"]
[Black "Okus, Melih"]
[Result "0-1"]
[ECO "B06"]
[WhiteElo "2038"]
[BlackElo "2041"]
[Annotator "NA"]
[PlyCount "66"]
[EventType "team-tourn"]
[EventCountry "TUR"]
[SourceTitle "playchess.com"]
[Source "ChessBase"]
[SourceQuality "1"]
[TimeControl "5400+30"]

1. e4 {[%emt 0:00:30]} g6 {[%emt 0:01:00]} 2. Nc3 {[%emt 0:00:00]} Bg7 {[%emt 0:00:30]} 3. d4 {[%emt 0:00:00]} d6 {[%emt 0:00:00]} 4. Nf3 {[%emt 0:01:30]} a6 {[%emt 0:00:00]} 5. Be3 {[%emt 0:05:30]} b5 {[%emt 0:00:30]} 6. Bd3 {[%emt 0:03:30]} Nd7 {[%emt 0:01:30] B06: Modern Defence} 7. Ne2 {[%emt 0:07:30]} c5 {[%emt 0:05:30]} 8. c3 {[%emt 0:00:30]} Bb7 {[%emt 0:00:30]} 9. h3 {[%emt 0:06:30]} Ngf6 {[%emt 0:01:30]} 10. Ng3 {[%emt 0:01:30]} h6 $146 {[%emt 0:15:30]} ({Predecessor:} 10... e5 11. d5 h5 12. Bg5 Bh6 13. Bxh6 Rxh6 {0-1 (51) Antoniewski,R (2550)-Rapport,R (2687) Austria 2013}) 11. O-O {[%emt 0:07:30]} c4 {[%emt 0:07:30]} 12. Bc2 {[%emt 0:01:30]} d5 {[%emt 0:00:30]} 13. e5 {[%emt 0:01:30]} Ne4 {[%emt 0:00:30]} 14. e6 {[%emt 0:21:30]} fxe6 {[%emt 0:06:30]} 15. Nh4 {[%emt 0:03:30]} Nf8 {[%emt 0:01:30]} 16. Nxg6 {[%emt 0:05:30]} Nxg6 {[%emt 0:01:30]} 17. Qh5 {[%emt 0:00:30]} Kd7 {[%emt 0:08:30]} 18. Nxe4 {[%emt 0:03:30]} dxe4 {[%emt 0:00:30]} 19. Qxg6 {[%emt 0:00:00]} Rg8 {[%emt 0:01:30]} 20. Qh5 {[%emt 0:05:00]} Qf8 {[%emt 0:07:30]} 21. a4 {[%emt 0:08:37]} Qf5 {[%emt 0:00:00]} 22. Qe2 {[%emt 0:01:13]} Bf6 {[%emt 0:06:00]} 23. Kh2 {[%emt 0:01:15]} Bg5 {[%emt 0:03:30]} 24. Ra3 $11 {[%emt 0:03:06]} (24. Rae1 $16) 24... Bf4+ {[%emt 0:08:30]} 25. g3 {[%emt 0:09:04]} Bd6 {[%emt 0:00:30]} 26. Raa1 {[%emt 0:01:41]} h5 {[%emt 0:00:00]} 27. Kg2 {[%emt 0:00:55]} Rg6 {[%emt 0:04:37]} 28. Bd1 {[%emt 0:00:17]} Rag8 {[%emt 0:00:29]} 29. g4 {[%emt 0:00:48]} hxg4 {[%emt 0:01:26]} 30. h4 {[%emt 0:00:33]} g3 {[%emt 0:03:18]} 31. Bg5 {[%emt 0:00:24]} Rxg5 {[%emt 0:02:35]} 32. hxg5 {[%emt 0:00:30]} Rh8 {[%emt 0:00:00]} 33. Qh5 {[%emt 0:00:35]} e3+ {[%emt 0:00:10]} 0-1

[Event "1st Turkish League 2017"]
[Site "Konya"]
[Date "2017.07.20"]
[Round "6"]
[White "Nalbant, Tuna Onat"]
[Black "Gulbeyaz, Emir"]
[Result "0-1"]
[ECO "B42"]
[WhiteElo "2037"]
[BlackElo "1952"]
[Annotator "NA"]
[PlyCount "154"]
[EventType "team-tourn"]
[EventCountry "TUR"]
[SourceTitle "playchess.com"]
[Source "ChessBase"]
[SourceQuality "1"]
[TimeControl "5400+30"]

1. e4 {[%emt 0:00:30]} c5 {[%emt 0:01:00]} 2. Nf3 {[%emt 0:00:30]} e6 {[%emt 0:00:00]} 3. d4 {[%emt 0:00:00]} cxd4 {[%emt 0:00:00]} 4. Nxd4 {[%emt 0:00:00]} a6 {[%emt 0:00:30]} 5. Bd3 {[%emt 0:00:30]} Nf6 {[%emt 0:00:30]} 6. O-O {[%emt 0:00:30]} d6 {[%emt 0:00:00]} 7. Qe2 {[%emt 0:00:30]} Qc7 {[%emt 0:00:00]} 8. c4 {[%emt 0:00:30]} g6 {[%emt 0:00:00]} 9. Nc3 {[%emt 0:01:30]} Bg7 {[%emt 0:00:00]} 10. Be3 {[%emt 0:03:30]} O-O {[%emt 0:01:30]} 11. Rac1 {[%emt 0:01:30] B42: Sicilian: Kan Variation: 5 Bd3} Nc6 {[%emt 0:05:30]} (11... Nbd7 12. Rfd1 b6 13. f3 Bb7 14. Qd2 Rac8 15. Bf1 Rfd8 16. b4 Qb8 17. Na4 Bf8 18. Nb3 Bc6 19. Nc3 Ba8 20. Qf2 Ne5 21. Na4 d5 22. exd5 exd5 23. Bxb6 dxc4 24. Rxd8 Rxd8 25. Bxd8 Qxd8 26. Bxc4 {½-½ (34) Bok,B (2598)-Artemiev,V (2653) Doha 2016}) 12. Nb3 {[%emt 0:04:30]} Nd7 {[%emt 0:03:30]} 13. f4 {[%emt 0:05:30]} b6 $146 {[%emt 0:01:30]} ({Predecessor:} 13... Re8 14. f5 Nde5 15. fxe6 fxe6 16. Na4 Bd7 17. Bb6 Qb8 18. Bb1 Ne7 {0-1 (51) Folkova,M (2134)-Choladze,M (1989) Chakvi 2015}) 14. Rfd1 {[%emt 0:11:30]} Nc5 {[%emt 0:01:30]} 15. Bb1 {[%emt 0:02:30]} Bb7 {[%emt 0:03:30]} 16. Qf2 {[%emt 0:11:30]} f5 {[%emt 0:13:30]} 17. Nxc5 {[%emt 0:10:30]} bxc5 {[%emt 0:00:00]} 18. e5 {[%emt 0:04:30]} Nd4 {[%emt 0:07:00]} 19. Bxd4 {[%emt 0:05:30]} cxd4 {[%emt 0:00:00]} 20. Qxd4 {[%emt 0:00:30]} Qc6 {[%emt 0:02:00]} 21. Rc2 {[%emt 0:10:30]} dxe5 {[%emt 0:04:30]} 22. Qd6 {[%emt 0:05:42]} exf4 {[%emt 0:08:30]} 23. Qxc6 {[%emt 0:00:42]} Bxc6 {[%emt 0:00:30]} 24. Rd6 {[%emt 0:00:00]} Be4 {[%emt 0:00:00]} 25. Nxe4 {[%emt 0:01:03]} fxe4 {[%emt 0:00:00]} 26. Rxe6 {[%emt 0:00:52]} e3 {[%emt 0:00:00]} 27. Kf1 {[%emt 0:04:59]} g5 {[%emt 0:10:00]} 28. h3 {[%emt 0:01:33]} Kf7 {[%emt 0:01:30]} 29. Re4 {[%emt 0:03:13]} (29. Rd6 $15) 29... Rad8 {[%emt 0:07:30]} 30. Ke2 {[%emt 0:00:33]} Rd7 {[%emt 0:02:30]} 31. h4 {[%emt 0:08:10]} Rfd8 {[%emt 0:01:30]} 32. hxg5 {[%emt 0:00:23]} Rd1 {[%emt 0:01:30]} 33. Rxf4+ {[%emt 0:00:11]} Kg8 {[%emt 0:00:00]} 34. Kxe3 {[%emt 0:00:21]} Rxb1 {[%emt 0:00:00]} 35. b3 {[%emt 0:01:06]} Re1+ {[%emt 0:00:30]} 36. Kf3 {[%emt 0:01:23]} Re5 {[%emt 0:00:00]} 37. Kg4 {[%emt 0:00:37]} Bf8 {[%emt 0:03:00]} 38. Rcf2 {[%emt 0:01:07]} Bc5 {[%emt 0:01:30]} 39. Rf5 {[%emt 0:00:30]} Rd4+ {[%emt 0:01:30]} 40. R2f4 {[%emt 0:00:30]} Rxf5 {[%emt 0:00:30]} 41. Kxf5 {[%emt 0:00:14]} Rd2 {[%emt 0:01:30]} 42. a4 {[%emt 0:00:46]} Rxg2 {[%emt 0:00:30]} 43. Re4 {[%emt 0:00:30]} a5 {[%emt 0:00:30]} 44. Re5 {[%emt 0:00:42]} Bb4 {[%emt 0:00:30]} 45. Re3 {[%emt 0:00:21]} Kf7 {[%emt 0:00:30]} 46. Rd3 {[%emt 0:00:51]} Rd2 {[%emt 0:00:30]} 47. Rh3 {[%emt 0:00:02]} Kg7 {[%emt 0:00:30]} 48. Ke5 {[%emt 0:00:31]} Rg2 {[%emt 0:00:00]} 49. Rh5 {[%emt 0:00:36]} Rg3 {[%emt 0:02:00]} 50. Kd5 {[%emt 0:00:41]} Rd3+ {[%emt 0:00:00]} 51. Kc6 {[%emt 0:00:14]} Rxb3 {[%emt 0:00:00]} 52. Kb5 {[%emt 0:00:29]} Bd2+ {[%emt 0:01:30]} 53. Ka6 {[%emt 0:00:22]} Rb4 {[%emt 0:01:30]} 54. Kxa5 {[%emt 0:00:57]} Rxc4+ {[%emt 0:00:30]} 55. Kb5 {[%emt 0:00:22]} Rb4+ {[%emt 0:00:00]} 56. Kc5 {[%emt 0:00:24]} Rxa4 {[%emt 0:00:00]} 57. Kd5 {[%emt 0:00:18]} Ra5+ {[%emt 0:00:30]} 58. Ke4 {[%emt 0:00:02]} Bxg5 {[%emt 0:00:30]} 59. Kf3 {[%emt 0:00:30]} Kg6 {[%emt 0:00:30]} 60. Rh1 {[%emt 0:00:03]} Ra3+ {[%emt 0:00:00]} 61. Kg2 {[%emt 0:00:30]} h5 {[%emt 0:00:00]} 62. Rf1 {[%emt 0:00:00]} h4 {[%emt 0:00:30]} 63. Kh2 {[%emt 0:00:14]} Kh5 {[%emt 0:00:00]} 64. Rf2 {[%emt 0:00:11]} Kg4 {[%emt 0:00:00]} 65. Rg2+ {[%emt 0:00:30]} Rg3 {[%emt 0:00:00]} 66. Rf2 {[%emt 0:00:00]} Bf4 {[%emt 0:00:00]} 67. Kh1 {[%emt 0:00:00]} h3 {[%emt 0:00:30]} 68. Rf1 {[%emt 0:00:15]} Ra3 {[%emt 0:00:30]} 69. Rg1+ {[%emt 0:00:31]} Bg3 {[%emt 0:00:00]} 70. Rb1 {[%emt 0:00:40]} Ra2 {[%emt 0:02:00]} 71. Rc1 {[%emt 0:01:09]} Bf4 {[%emt 0:00:00]} 72. Rg1+ {[%emt 0:01:09]} Kf3 {[%emt 0:00:00]} 73. Re1 {[%emt 0:00:38]} Rf2 {[%emt 0:01:30]} 74. Rb1 {[%emt 0:00:57]} Be3 {[%emt 0:01:30]} 75. Rb3 {[%emt 0:01:21]} Re2 {[%emt 0:01:30]} 76. Ra3 {[%emt 0:00:59]} Kg3 {[%emt 0:00:30]} 77. Ra2 {[%emt 0:00:45]} Re1# {[%emt 0:00:00]} 0-1

[Event "1st Turkish League 2017"]
[Site "Konya"]
[Date "2017.07.20"]
[Round "6"]
[White "Yelligedik, Murat"]
[Black "Dogan, Nazmi Can"]
[Result "1-0"]
[ECO "C11"]
[WhiteElo "2014"]
[BlackElo "2242"]
[Annotator "NA"]
[PlyCount "57"]
[EventType "team-tourn"]
[EventCountry "TUR"]
[SourceTitle "playchess.com"]
[Source "ChessBase"]
[SourceQuality "1"]
[TimeControl "5400+30"]

1. e4 {[%emt 0:00:30]} e6 {[%emt 0:01:00]} 2. d4 {[%emt 0:00:30]} d5 {[%emt 0:00:30]} 3. Nc3 {[%emt 0:00:00]} Nf6 {[%emt 0:00:00]} 4. e5 {[%emt 0:01:00]} Nfd7 {[%emt 0:00:00]} 5. f4 {[%emt 0:00:30]} c5 {[%emt 0:00:30]} 6. Nf3 {[%emt 0:00:00]} Nc6 {[%emt 0:01:30]} 7. Be3 {[%emt 0:00:00]} Be7 {[%emt 0:06:30]} 8. Qd2 {[%emt 0:05:30]} b6 {[%emt 0:02:30] C11: French: Classical System: 4 e5 and 4 Bg5 dxe4} (8... a6 9. Be2 b5 10. O-O O-O 11. a3 Bb7 12. Nd1 f6 13. c3 Rc8 14. Bd3 Na5 15. Qe2 fxe5 16. fxe5 cxd4 17. cxd4 {1-0 (38) Grischuk,A (2761)-Caruana,F (2808) Paris 2017}) 9. Be2 {[%emt 0:00:00]} O-O {[%emt 0:02:30]} 10. O-O {[%emt 0:00:00]} f5 {[%emt 0:02:30]} 11. Nd1 {[%emt 0:15:30]} cxd4 {[%emt 0:06:30]} 12. Nxd4 {[%emt 0:00:30]} Nxd4 {[%emt 0:00:30]} 13. Bxd4 {[%emt 0:00:30]} Nc5 {[%emt 0:00:30]} 14. Nf2 {[%emt 0:08:30]} Bb7 {[%emt 0:02:30]} 15. b4 {[%emt 0:09:30]} Ne4 {[%emt 0:06:30]} 16. Nxe4 {[%emt 0:03:30]} dxe4 {[%emt 0:00:00] [#]} 17. a3 $146 {[%emt 0:06:30]} Rc8 {[%emt 0:04:00]} 18. c3 {[%emt 0:04:30]} Kh8 {[%emt 0:02:30]} 19. Rad1 {[%emt 0:01:30]} g5 {[%emt 0:19:30]} 20. Qa2 {[%emt 0:03:30]} Qd5 {[%emt 0:03:30]} 21. c4 {[%emt 0:05:30]} Qc6 {[%emt 0:00:30]} 22. Ba1 {[%emt 0:05:30]} Kg8 {[%emt 0:13:30]} 23. c5 {[%emt 0:05:30]} Rce8 {[%emt 0:12:12]} 24. Bc4 {[%emt 0:07:23]} Kg7 {[%emt 0:06:04]} 25. Rd6 {[%emt 0:01:33]} Bxd6 {[%emt 0:00:22]} 26. exd6+ {[%emt 0:00:10]} Kg6 {[%emt 0:01:09]} 27. Qb2 $14 {[%emt 0:11:05]} (27. Bxe6 $18 h6 28. fxg5) 27... Rf7 {[%emt 0:00:28]} 28. fxg5 {[%emt 0:02:36]} e3 {[%emt 0:03:29]} 29. Rxf5 {[%emt 0:00:00]} 1-0

[Event "1st Turkish League 2017"]
[Site "Konya"]
[Date "2017.07.20"]
[Round "6"]
[White "Baylav, Can"]
[Black "Metin, Oguz"]
[Result "1/2-1/2"]
[ECO "B15"]
[WhiteElo "2001"]
[BlackElo "2052"]
[Annotator "NA"]
[PlyCount "61"]
[EventType "team-tourn"]
[EventCountry "TUR"]
[SourceTitle "playchess.com"]
[Source "ChessBase"]
[SourceQuality "1"]
[TimeControl "5400+30"]

1. e4 {[%emt 0:00:30]} g6 {[%emt 0:02:00]} 2. d4 {[%emt 0:00:30]} Bg7 {[%emt 0:00:30]} 3. Nc3 {[%emt 0:00:00]} c6 {[%emt 0:00:00]} 4. Be3 {[%emt 0:00:00]} d5 {[%emt 0:01:00]} 5. f3 {[%emt 0:00:30]} dxe4 {[%emt 0:01:30]} 6. fxe4 {[%emt 0:00:00]} Qb6 {[%emt 0:00:30] B15: Caro-Kann: 3 Nc3: 3...g6 and 3...dxe4 4 Nxe4 Nf6 5 Nxf6+ exf6} (6... e5 7. dxe5 Qa5 8. Nf3 Be6 9. Ng5 Bxe5 10. Nxe6 fxe6 11. Qd2 Qb4 12. O-O-O Qe7 13. Bc4 Nd7 14. Rhf1 {0-1 (28) Amin,B (2609)-Gashimov,V (2760) Ningbo 2011}) 7. Qd2 {[%emt 0:36:00]} Nf6 {[%emt 0:06:30]} 8. e5 $146 {[%emt 0:04:30]} ({Predecessor:} 8. Nf3 Ng4 9. Bf4 e5 10. dxe5 Nd7 11. Na4 Qc7 12. e6 Nde5 13. exf7+ Qxf7 14. Nxe5 Nxe5 {0-1 (25) Ansell,S (2405)-Fridman,D (2628) Liverpool 2007}) 8... Nd5 {[%emt 0:02:30]} 9. Nxd5 {[%emt 0:02:30]} cxd5 {[%emt 0:00:00]} 10. c4 {[%emt 0:00:30]} Be6 {[%emt 0:13:00]} 11. Nf3 {[%emt 0:01:30]} f6 {[%emt 0:01:30]} 12. c5 {[%emt 0:00:30]} Qd8 {[%emt 0:02:30]} 13. Bh6 {[%emt 0:07:30]} Bxh6 {[%emt 0:14:30]} 14. Qxh6 {[%emt 0:00:30]} Qa5+ {[%emt 0:00:00]} 15. Qd2 {[%emt 0:01:30]} Qxd2+ {[%emt 0:00:00]} 16. Kxd2 {[%emt 0:00:30]} a6 {[%emt 0:08:30]} 17. Re1 {[%emt 0:01:30]} Kd7 {[%emt 0:04:30]} 18. h3 {[%emt 0:01:30]} Nc6 {[%emt 0:02:30]} 19. exf6 {[%emt 0:00:30]} exf6 {[%emt 0:00:30]} 20. Bd3 {[%emt 0:00:00]} Rae8 {[%emt 0:08:30]} 21. Kc3 {[%emt 0:02:00]} Bf5 {[%emt 0:03:30]} 22. Bxf5+ {[%emt 0:02:30]} gxf5 {[%emt 0:02:30]} 23. Nh4 {[%emt 0:06:30]} Rxe1 {[%emt 0:01:30]} 24. Rxe1 {[%emt 0:00:30]} Rg8 {[%emt 0:00:30]} 25. Rf1 {[%emt 0:02:30]} Ne7 {[%emt 0:11:36]} 26. b4 {[%emt 0:02:30]} Ke6 {[%emt 0:01:46]} 27. a4 {[%emt 0:00:30]} Ra8 {[%emt 0:06:46]} 28. Rf2 {[%emt 0:06:54]} Rg8 {[%emt 0:00:17]} 29. Kd3 {[%emt 0:00:34]} Ra8 {[%emt 0:01:14]} 30. Ke3 {[%emt 0:01:34]} Rg8 {[%emt 0:01:08]} 31. Kf4 $16 {[%emt 0:05:03]} 1/2-1/2

[Event "1st Turkish League 2017"]
[Site "Konya"]
[Date "2017.07.20"]
[Round "6"]
[White "Cakiroglu, Metin"]
[Black "Sakir, Ridvan"]
[Result "1-0"]
[ECO "A12"]
[WhiteElo "1993"]
[BlackElo "2132"]
[Annotator "NA"]
[PlyCount "163"]
[EventType "team-tourn"]
[EventCountry "TUR"]
[SourceTitle "playchess.com"]
[Source "ChessBase"]
[SourceQuality "1"]
[TimeControl "5400+30"]

1. Nf3 {[%emt 0:00:30]} Nf6 {[%emt 0:02:00]} 2. b3 {[%emt 0:00:00]} d5 {[%emt 0:01:30]} 3. g3 {[%emt 0:00:00]} Bg4 {[%emt 0:02:30]} 4. Bg2 {[%emt 0:00:00]} c6 {[%emt 0:00:30]} 5. Bb2 {[%emt 0:00:00]} Nbd7 {[%emt 0:00:30]} 6. O-O {[%emt 0:00:30]} e6 {[%emt 0:01:30] LiveBook: 890 Games} 7. c4 {[%emt 0:05:30]} Bd6 {[%emt 0:02:30]} 8. d3 {[%emt 0:00:30]} O-O {[%emt 0:00:30]} 9. Nbd2 {[%emt 0:00:30]} Re8 {[%emt 0:01:30]} 10. Rc1 {[%emt 0:00:30] A12: English Opening: 1...c6 with b3 by White} Qe7 {[%emt 0:03:30]} 11. Rc2 {[%emt 0:00:30]} a5 {[%emt 0:02:30]} 12. h3 {[%emt 0:05:30]} Bxf3 {[%emt 0:06:30]} 13. Nxf3 {[%emt 0:08:30]} a4 {[%emt 0:02:30] [#]} 14. Qd2 $146 {[%emt 0:02:30]} ({Predecessor:} 14. cxd5 exd5 15. bxa4 Nc5 16. Qa1 Nxa4 17. Bxf6 Qxf6 18. Qxf6 gxf6 {½-½ (30) Kveinys,A (2533)-Khenkin,I (2647) Dresden 2008}) 14... Ra6 {[%emt 0:08:30]} 15. Rb1 {[%emt 0:02:30]} axb3 {[%emt 0:01:30]} 16. axb3 {[%emt 0:01:30]} Rea8 {[%emt 0:00:30]} 17. b4 {[%emt 0:03:30]} e5 {[%emt 0:07:30]} 18. c5 {[%emt 0:00:30]} Bc7 {[%emt 0:01:30]} 19. Nh4 {[%emt 0:02:30]} Qe6 {[%emt 0:02:30]} 20. e4 {[%emt 0:01:30]} Nf8 {[%emt 0:06:30]} 21. Nf5 {[%emt 0:04:30]} Ng6 {[%emt 0:01:30]} 22. h4 {[%emt 0:05:30]} dxe4 {[%emt 0:07:30]} 23. dxe4 {[%emt 0:00:30]} Rd8 {[%emt 0:00:30]} 24. Qe3 {[%emt 0:03:30]} Qd7 {[%emt 0:05:30]} 25. Bh3 {[%emt 0:04:30]} Qe8 {[%emt 0:01:30]} 26. Re1 {[%emt 0:17:30]} Ne7 {[%emt 0:03:30]} 27. Nd6 {[%emt 0:03:30]} Bxd6 {[%emt 0:07:30]} 28. cxd6 {[%emt 0:00:00]} Nc8 {[%emt 0:00:57] [#]} (28... Ng6 $16) 29. f4 $1 {[%emt 0:02:00]} Nd7 $2 {[%emt 0:02:13]} (29... Ra2 30. Qb3 (30. fxe5 Rxb2 31. Rxb2 Qxe5 $16) 30... Rxb2 31. Qxb2 exf4) 30. Rd2 {[%emt 0:04:30]} Ncb6 {[%emt 0:01:25]} 31. Rc2 {[%emt 0:07:12]} Ra4 {[%emt 0:02:50]} 32. Qc3 {[%emt 0:06:53]} Raa8 {[%emt 0:02:06]} 33. Qb3 {[%emt 0:01:36]} Kh8 {[%emt 0:01:04]} 34. Rf2 {[%emt 0:01:08]} f6 {[%emt 0:01:03]} 35. Bg4 {[%emt 0:00:27]} Qg6 {[%emt 0:02:07]} 36. Qf3 {[%emt 0:00:06]} exf4 {[%emt 0:01:28]} 37. h5 {[%emt 0:01:51]} Qg5 $2 {[%emt 0:04:54]} (37... Qf7 {was called for.} 38. Qxf4 (38. gxf4 Na4 $16) 38... Qf8) 38. gxf4 $18 {[%emt 0:00:06]} Qh6 {[%emt 0:00:24]} 39. Rc2 {[%emt 0:04:08]} Ra2 {[%emt 0:00:41]} 40. Bxf6 {[%emt 0:00:37]} Rxc2 {[%emt 0:00:15]} 41. Bxd8 {[%emt 0:00:49]} Qxd6 {[%emt 0:00:03]} 42. Rd1 {[%emt 0:00:11]} Rd2 {[%emt 0:00:31]} 43. Rxd2 {[%emt 0:00:34]} Qxd2 {[%emt 0:00:01]} 44. Be7 {[%emt 0:02:25]} Nf6 {[%emt 0:00:41]} 45. h6 {[%emt 0:00:49]} Qe1+ {[%emt 0:00:48]} 46. Kg2 {[%emt 0:00:19]} Nxg4 {[%emt 0:00:26]} 47. hxg7+ {[%emt 0:00:35]} Kg8 {[%emt 0:00:03]} 48. Bc5 {[%emt 0:00:10]} Qd2+ {[%emt 0:02:45]} 49. Kg1 {[%emt 0:00:51]} Qc1+ {[%emt 0:00:46]} 50. Kg2 {[%emt 0:00:45]} Qb2+ {[%emt 0:00:04]} 51. Kg1 {[%emt 0:00:10]} Qa1+ {[%emt 0:01:06]} 52. Kg2 {[%emt 0:00:05]} Qb2+ {[%emt 0:00:16]} 53. Kg1 {[%emt 0:00:00]} Qxg7 {[%emt 0:00:48]} 54. Bxb6 {[%emt 0:00:37]} Ne5+ {[%emt 0:00:30]} 55. Qg2 {[%emt 0:00:30]} Qxg2+ {[%emt 0:00:30]} 56. Kxg2 {[%emt 0:00:30]} Nd3 {[%emt 0:00:00]} 57. Kf3 {[%emt 0:00:00]} Nxb4 {[%emt 0:00:00]} 58. f5 {[%emt 0:00:00]} Kf7 {[%emt 0:00:00]} 59. Bd4 {[%emt 0:00:25]} Nc2 {[%emt 0:00:25]} 60. Bb2 {[%emt 0:00:58]} c5 {[%emt 0:00:44]} 61. e5 {[%emt 0:00:05]} h5 {[%emt 0:01:45]} 62. e6+ {[%emt 0:00:23]} Ke7 {[%emt 0:00:49]} 63. Ke4 {[%emt 0:00:32]} Nd4 {[%emt 0:00:24]} 64. Ke5 {[%emt 0:00:22]} Nc6+ {[%emt 0:00:21]} 65. Kf4 {[%emt 0:01:52]} b5 {[%emt 0:00:42]} 66. Kg5 {[%emt 0:00:16]} b4 {[%emt 0:01:41]} 67. Kg6 {[%emt 0:00:11]} Nd4 {[%emt 0:01:39]} 68. Bxd4 {[%emt 0:00:30]} cxd4 {[%emt 0:00:01]} 69. f6+ {[%emt 0:00:00]} Kxe6 {[%emt 0:00:03]} 70. f7 {[%emt 0:00:23]} Kd5 {[%emt 0:00:30]} 71. f8=Q {[%emt 0:00:30]} Kc4 {[%emt 0:00:00]} 72. Qc8+ {[%emt 0:00:00]} Kb3 {[%emt 0:00:00]} 73. Qc1 {[%emt 0:00:00]} Ka2 {[%emt 0:00:23]} 74. Qd2+ {[%emt 0:00:50]} Ka3 {[%emt 0:00:30]} 75. Qxd4 {[%emt 0:00:00]} h4 {[%emt 0:00:00]} 76. Qa1+ {[%emt 0:00:40]} Kb3 {[%emt 0:00:14]} 77. Kf5 {[%emt 0:00:00]} h3 {[%emt 0:00:00]} 78. Ke4 {[%emt 0:00:00]} Kc2 {[%emt 0:01:40]} 79. Qa2+ {[%emt 0:00:56]} Kc3 {[%emt 0:00:03]} 80. Kf3 {[%emt 0:00:08]} b3 {[%emt 0:00:43]} 81. Qb1 {[%emt 0:00:30]} h2 {[%emt 0:00:00]} 82. Kg2 {[%emt 0:00:00]} 1-0

[Event "1st Turkish League 2017"]
[Site "Konya"]
[Date "2017.07.20"]
[Round "6"]
[White "Kaya, Emel"]
[Black "Yilmaz, Ezgi"]
[Result "1-0"]
[ECO "B06"]
[WhiteElo "1929"]
[BlackElo "1836"]
[Annotator "NA"]
[PlyCount "57"]
[EventType "team-tourn"]
[EventCountry "TUR"]
[SourceTitle "playchess.com"]
[Source "ChessBase"]
[SourceQuality "1"]
[TimeControl "5400+30"]

1. e4 {[%emt 0:00:30]} g6 {[%emt 0:03:00]} 2. d4 {[%emt 0:00:30]} c6 {[%emt 0:00:30]} 3. Nc3 {[%emt 0:04:30]} Bg7 {[%emt 0:00:00]} 4. a4 {[%emt 0:03:30]} d6 {[%emt 0:03:00]} 5. Bc4 {[%emt 0:03:30]} Nd7 {[%emt 0:01:30]} 6. Nf3 {[%emt 0:00:30]} e5 {[%emt 0:17:30]} 7. Be3 {[%emt 0:14:30]} Ngf6 {[%emt 0:04:30]} 8. dxe5 {[%emt 0:01:30]} dxe5 {[%emt 0:01:30]} 9. O-O {[%emt 0:14:30]} O-O {[%emt 0:01:30]} 10. h3 {[%emt 0:00:30]} h6 {[%emt 0:01:30]} 11. Qd2 {[%emt 0:05:30]} Kh7 {[%emt 0:01:30]} 12. Rfd1 {[%emt 0:01:30]} Qe8 {[%emt 0:00:30]} 13. a5 {[%emt 0:01:30]} Ng8 {[%emt 0:03:30]} 14. Qd6 {[%emt 0:12:30]} Qe7 {[%emt 0:08:30]} 15. a6 {[%emt 0:08:30]} Nb6 {[%emt 0:32:34]} 16. axb7 {[%emt 0:05:26]} Bxb7 {[%emt 0:00:36]} 17. Qxe7 {[%emt 0:01:29]} Nxe7 {[%emt 0:00:05]} 18. Bxb6 {[%emt 0:00:22]} axb6 {[%emt 0:00:30]} 19. Rxa8 {[%emt 0:00:00]} Bxa8 {[%emt 0:00:15]} 20. Rd7 {[%emt 0:00:00]} Bf6 {[%emt 0:00:11]} 21. Nxe5 {[%emt 0:00:25]} Kg7 {[%emt 0:00:59]} 22. Nxf7 {[%emt 0:01:43]} b5 {[%emt 0:07:17]} 23. Nd8 {[%emt 0:04:12]} Re8 {[%emt 0:07:00]} 24. Bf7 {[%emt 0:02:45]} Rh8 {[%emt 0:01:00]} 25. Bb3 {[%emt 0:01:04]} Re8 {[%emt 0:01:49]} 26. f4 {[%emt 0:02:12]} Kh8 {[%emt 0:01:30]} 27. e5 {[%emt 0:01:54]} Bg7 {[%emt 0:00:50]} 28. Nf7+ {[%emt 0:00:22]} Kh7 {[%emt 0:00:34]} 29. Nd6 {[%emt 0:00:12]} 1-0

[Event "1st Turkish League 2017"]
[Site "Konya"]
[Date "2017.07.20"]
[Round "6"]
[White "Temel, Burcu Melis"]
[Black "Bivol, Alina"]
[Result "0-1"]
[ECO "A08"]
[WhiteElo "1846"]
[BlackElo "2379"]
[Annotator "ChessBase"]
[PlyCount "64"]
[EventType "team-tourn"]
[EventCountry "TUR"]
[SourceTitle "playchess.com"]
[Source "ChessBase"]
[SourceQuality "1"]
[TimeControl "5400+30"]

1. e4 {[%emt 0:00:30]} e6 {[%emt 0:01:00]} 2. d3 {[%emt 0:00:00]} d5 {[%emt 0:03:30]} 3. Nd2 {[%emt 0:00:00]} c5 {[%emt 0:00:00]} 4. Ngf3 {[%emt 0:00:30]} g6 {[%emt 0:00:00]} 5. g3 {[%emt 0:00:30]} Bg7 {[%emt 0:00:30]} 6. Bg2 {[%emt 0:00:00]} Nc6 {[%emt 0:00:30]} 7. O-O {[%emt 0:00:00]} Nf6 {[%emt 0:00:30]} 8. Re1 {[%emt 0:12:30]} O-O {[%emt 0:00:30]} 9. c3 {[%emt 0:05:30]} a5 {[%emt 0:01:30]} 10. e5 {[%emt 0:16:30]} Nd7 {[%emt 0:00:30]} 11. d4 {[%emt 0:00:30]} cxd4 {[%emt 0:00:30]} 12. cxd4 {[%emt 0:00:00]} Qb6 {[%emt 0:00:00]} 13. Nf1 {[%emt 0:00:00]} f6 {[%emt 0:00:00]} 14. Bh3 {[%emt 0:02:30]} fxe5 {[%emt 0:00:30]} 15. Bxe6+ {[%emt 0:04:30]} Kh8 {[%emt 0:01:30]} 16. Ng5 {[%emt 0:10:30]} h6 {[%emt 0:07:30]} 17. Nf7+ {[%emt 0:00:30]} Kh7 {[%emt 0:00:30]} 18. Bxd5 {[%emt 0:17:30]} Nxd4 {[%emt 0:02:30]} 19. Ne3 {[%emt 0:03:30]} Nf6 {[%emt 0:06:30]} 20. Bc4 {[%emt 0:04:30]} Qc5 {[%emt 0:00:30]} 21. a4 {[%emt 0:06:20]} b5 {[%emt 0:09:30]} 22. axb5 {[%emt 0:01:34]} Bb7 {[%emt 0:00:30]} 23. b3 {[%emt 0:01:43]} Nf3+ {[%emt 0:01:30]} 24. Kf1 {[%emt 0:00:03]} Nxh2+ {[%emt 0:01:30]} 25. Kg1 {[%emt 0:00:03]} Nf3+ {[%emt 0:00:30]} 26. Kf1 {[%emt 0:00:01]} Qc8 {[%emt 0:00:30]} 27. Nd6 {[%emt 0:05:56]} Qh3+ {[%emt 0:02:30]} 28. Ke2 {[%emt 0:00:03]} Nd4+ {[%emt 0:01:30]} 29. Kd2 {[%emt 0:01:41]} Bf3 {[%emt 0:00:30]} 30. Be2 {[%emt 0:00:47]} Nxe2 {[%emt 0:00:00]} 31. Rxe2 {[%emt 0:00:00]} Rfd8 {[%emt 0:01:00]} 32. Ba3 {[%emt 0:00:14]} Ne4+ {[%emt 0:00:00]} 0-1

[Event "1st Turkish League 2017"]
[Site "Konya"]
[Date "2017.07.20"]
[Round "6"]
[White "Ozbek, Busra"]
[Black "Mutlu, Beste"]
[Result "1-0"]
[ECO "A49"]
[WhiteElo "1796"]
[BlackElo "1712"]
[Annotator "NA"]
[PlyCount "163"]
[EventType "team-tourn"]
[EventCountry "TUR"]
[SourceTitle "playchess.com"]
[Source "ChessBase"]
[SourceQuality "1"]
[TimeControl "5400+30"]

1. d4 Nf6 2. Nf3 g6 3. g3 Bg7 4. Bg2 d6 5. b3 O-O 6. Bb2 Nbd7 7. O-O c5 8. e3 Qc7 9. c4 Rb8 10. Nc3 a6 11. a4 b6 12. d5 Ne8 13. e4 Ne5 14. Ne1 Bg4 15. f3 Bc8 16. h3 Qd8 17. f4 Nd7 18. Nd3 Bb7 19. Qe2 e5 20. dxe6 fxe6 21. e5 dxe5 22. fxe5 Nxe5 23. Rxf8+ Kxf8 24. Nf4 Qe7 25. Na2 Nf7 26. Bxb7 Rxb7 27. Nxe6+ Kg8 28. Bc3 Ng5 29. Re1 Nxe6 30. Qxe6+ Qxe6 31. Rxe6 Kf7 32. Rc6 Nf6 33. Kg2 Ne4 34. Bxg7 Kxg7 35. Nc1 Kf7 36. Kf3 Nd2+ 37. Ke2 Ne4 38. g4 Ke7 39. Nd3 Nc3+ 40. Kd2 Ne4+ 41. Ke3 Ng5 42. Nf4 Kd7 43. Rf6 Ke8 44. h4 Nf7 45. Nd5 Nh6 46. Kf4 Rf7 47. Kg5 Ng8 48. Rxb6 Kf8 49. Nf6 Kg7 50. Nxg8 Kxg8 51. Rxa6 Kg7 52. h5 h6+ 53. Kh4 g5+ 54. Kg3 Rb7 55. Rc6 Rxb3+ 56. Kf2 Ra3 57. Rxc5 Rxa4 58. Kf3 Ra3+ 59. Ke4 Rg3 60. Kf5 Rf3+ 61. Ke6 Re3+ 62. Re5 Rg3 63. Re4 Rc3 64. Kd5 Kf7 65. c5 Rd3+ 66. Rd4 Rc3 67. c6 Ke7 68. Re4+ Kd8 69. Re6 Rd3+ 70. Ke4 Rg3 71. Kf5 Rf3+ 72. Kg6 Rf4 73. Kxh6 Rxg4 74. Rg6 Kc7 75. Rxg5 Rc4 76. Rg6 Rh4 77. Rf6 Rh1 78. Kg6 Rg1+ 79. Kh7 Rh1 80. h6 Rh2 81. Kg7 Rg2+ 82. Rg6 1-0